bitfinex/quotes_BTCUSD_20250825
["timestamp","ask_amount","ask_price","bid_price","bid_amount"]
[1756105901387,1.16e-06,112070.0,112060.0,2.06459264]
[1756105902919,1.16e-06,112070.0,112060.0,1.90571264]
[1756105903161,1.16e-06,112070.0,112060.0,0.98796713]
[1756105903377,1.16e-06,112070.0,112060.0,1.14676713]
[1756105904226,1.16e-06,112070.0,112060.0,1.86451264]
[1756105905542,0.00311,112090.0,112070.0,0.1]
[1756105905759,0.00197,112090.0,112080.0,0.31632475]
[1756105905977,0.00508,112090.0,112080.0,0.31424475]
[1756105906193,0.00508,112090.0,112080.0,0.41348475]
[1756105907735,0.026808,112100.0,112090.0,0.099]
[1756105907941,0.00311,112110.0,112090.0,0.1999651]
[1756105908172,0.0300595,112110.0,112100.0,0.24580475]
[1756105908382,0.0320295,112110.0,112100.0,0.24580475]
[1756105908815,0.0320295,112110.0,112100.0,0.24788475]
[1756105908816,0.0289195,112110.0,112100.0,0.24788475]
[1756105909240,0.0289195,112110.0,112100.0,0.24580475]
[1756105909455,0.0320295,112110.0,112100.0,0.24580475]
[1756105909933,0.0320295,112110.0,112100.0,0.24780475]
[1756105910331,0.0320295,112110.0,112100.0,0.24785475]
[1756105910797,0.0001445,112110.0,112100.0,0.35212475]
[1756105911242,0.0001445,112110.0,112100.0,1.07087026]
[1756105911451,0.0001445,112110.0,112100.0,1.08740319]
[1756105911635,0.0001445,112110.0,112100.0,1.32685557]
[1756105911874,0.0001445,112110.0,112100.0,0.59257713]
[1756105912089,0.0001445,112110.0,112100.0,1.32385557]
[1756105912298,0.0001445,112110.0,112100.0,1.42685557]
[1756105912719,0.0001445,112110.0,112100.0,1.42585557]
[1756105912930,0.0001445,112110.0,112100.0,1.42685557]
[1756105913147,0.0001445,112110.0,112100.0,1.42985557]
[1756105913363,0.0001445,112110.0,112100.0,0.79557713]
[1756105913571,0.0001445,112110.0,112100.0,1.51246933]
[1756105916316,0.0001445,112110.0,112100.0,1.94646933]
[1756105916766,0.0001445,112110.0,112100.0,2.05218933]
[1756105919443,0.0001445,112110.0,112100.0,1.17665713]
[1756105919665,0.0001445,112110.0,112100.0,2.05214933]
[1756105919878,0.0001445,112110.0,112100.0,1.89354933]
[1756105920145,0.0001445,112110.0,112100.0,2.05214933]
[1756105920590,0.0001445,112110.0,112100.0,1.49454933]
[1756105920804,0.0001445,112110.0,112100.0,1.85214933]
[1756105921679,0.0001445,112110.0,112100.0,1.87894633]
[1756105922972,0.0001445,112110.0,112100.0,1.16205413]
[1756105923153,0.0001445,112110.0,112100.0,1.87894633]
[1756105923594,0.0001445,112110.0,112100.0,1.16205413]
[1756105923806,0.0001445,112110.0,112100.0,1.87894633]
[1756105925078,0.0001445,112110.0,112100.0,1.16205413]
[1756105925335,0.0001445,112110.0,112100.0,1.88552633]
[1756105926633,0.0001445,112110.0,112100.0,2.78083066]
[1756105926858,0.0001445,112110.0,112100.0,3.08915066]
[1756105927084,9.332e-05,112110.0,112100.0,3.08915066]
[1756105927736,9.332e-05,112110.0,112100.0,3.08615066]
[1756105927961,9.332e-05,112110.0,112100.0,3.36115066]
[1756105928192,9.332e-05,112110.0,112100.0,3.36415066]
[1756105928627,9.332e-05,112110.0,112100.0,3.36115066]
[1756105928835,9.332e-05,112110.0,112100.0,3.35815066]
[1756105929064,9.332e-05,112110.0,112100.0,3.36315066]
[1756105929279,9.332e-05,112110.0,112100.0,3.36515066]
[1756105929506,9.332e-05,112110.0,112100.0,3.36015066]
[1756105929722,9.332e-05,112110.0,112100.0,3.36515066]
[1756105929945,9.332e-05,112110.0,112100.0,3.37215066]
[1756105931488,0.00308,112150.0,112100.0,3.37215066]
[1756105931760,0.00014447,112150.0,112140.0,1.02022597]
[1756105931979,0.00215447,112150.0,112140.0,0.73234272]
[1756105932420,0.00523447,112150.0,112140.0,0.73234272]
[1756105932632,0.00523447,112150.0,112140.0,0.63234272]
[1756105932853,0.00523447,112150.0,112140.0,0.73234272]
[1756105933321,0.00523447,112150.0,112140.0,0.47478272]
[1756105933539,0.00523447,112150.0,112140.0,0.6148937]
[1756105933993,0.00523447,112150.0,112140.0,0.6168937]
[1756105934219,0.00523447,112150.0,112140.0,0.4583337]
[1756105934433,0.00523447,112150.0,112140.0,0.42158475]
[1756105935782,0.00523447,112150.0,112140.0,0.42358475]
[1756105936916,0.00523447,112150.0,112140.0,0.42354475]
[1756105938693,0.00523447,112150.0,112140.0,0.32454475]
[1756105938910,0.00523447,112150.0,112140.0,0.42354475]
[1756105941168,0.00523447,112150.0,112140.0,0.41696475]
[1756105941461,0.00014447,112150.0,112140.0,1.14545695]
[1756105941721,0.00014447,112150.0,112140.0,1.3407659]
[1756105942254,0.00014447,112150.0,112140.0,1.55821492]
[1756105942878,0.00014447,112150.0,112140.0,0.84132272]
[1756105943104,0.00523447,112150.0,112140.0,0.67778272]
[1756105943320,0.00523447,112150.0,112140.0,0.73630272]
[1756105943547,0.00523447,112150.0,112140.0,0.73833272]
[1756105943764,0.00523447,112150.0,112140.0,0.73630272]
[1756105943980,0.00523447,112150.0,112140.0,0.7188537]
[1756105944204,0.00523447,112150.0,112140.0,0.3613337]
[1756105944433,0.00523447,112150.0,112140.0,0.6188537]
[1756105945307,0.00523447,112150.0,112140.0,0.4603337]
[1756105945495,0.00523447,112150.0,112140.0,0.6188537]
[1756105946396,0.00215447,112150.0,112140.0,0.6208837]
[1756105947261,0.00523447,112150.0,112140.0,0.6188537]
[1756105947494,0.00014447,112150.0,112140.0,0.6208837]
[1756105947713,0.00014447,112150.0,112140.0,1.35821492]
[1756105948356,0.00014447,112150.0,112140.0,1.55821492]
[1756105951769,0.00014447,112150.0,112140.0,2.09821492]
[1756105951990,0.00014447,112150.0,112140.0,1.93969492]
[1756105952201,0.00014447,112150.0,112140.0,2.09817492]
[1756105952426,0.00014447,112150.0,112140.0,2.10714937]
[1756105952631,0.00014447,112150.0,112140.0,2.28549786]
[1756105952855,0.00014447,112150.0,112140.0,2.10714937]
[1756105953066,0.00014447,112150.0,112140.0,2.13393837]
[1756105955483,0.00014447,112150.0,112140.0,2.31228686]
[1756105955921,0.00014447,112150.0,112140.0,1.59539466]
[1756105956140,0.00014447,112150.0,112140.0,2.10714937]
[1756105956854,0.00014447,112150.0,112140.0,2.28549786]
[1756105957298,0.00014447,112150.0,112140.0,1.94666937]
[1756105957513,0.00014447,112150.0,112140.0,2.10510937]
[1756105957973,0.00014447,112150.0,112140.0,2.09852937]
[1756105958178,0.00014447,112150.0,112140.0,2.09652937]
[1756105958624,0.00014447,112150.0,112140.0,2.10052937]
[1756105959479,0.00014447,112150.0,112140.0,2.12125279]
[1756105960265,9.782e-05,112150.0,112140.0,2.12125279]
[1756105960670,0.00223782,112150.0,112140.0,2.12125279]
[1756105960827,0.00223782,112150.0,112140.0,1.72225279]
[1756105961035,0.00223782,112150.0,112140.0,1.96286279]
[1756105961236,0.00223782,112150.0,112140.0,1.39127717]
[1756105961439,0.00223782,112150.0,112140.0,2.02489279]
[1756105961741,0.00223782,112150.0,112140.0,1.48527717]
[1756105961924,0.00223782,112150.0,112140.0,2.06045279]
[1756105962138,0.00534782,112150.0,112140.0,2.02155384]
[1756105962333,9.782e-05,112150.0,112140.0,2.02670384]
[1756105963611,9.782e-05,112150.0,112140.0,2.02012384]
[1756105964645,9.782e-05,112150.0,112140.0,1.86168384]
[1756105964866,0.00223782,112150.0,112140.0,2.02008384]
[1756105965073,9.782e-05,112150.0,112140.0,2.02008384]
[1756105967187,9.782e-05,112150.0,112140.0,2.19843233]
[1756105967389,0.61976652,112180.0,112170.0,0.099]
[1756105967595,0.00262148,112180.0,112170.0,0.34428475]
[1756105967817,0.7362371,112180.0,112170.0,0.34428475]
[1756105968468,0.7362371,112180.0,112170.0,0.18588475]
[1756105968690,0.7362371,112180.0,112170.0,0.18688475]
[1756105968900,0.7362371,112180.0,112170.0,0.34528475]
[1756105969121,0.7362371,112180.0,112170.0,0.24628475]
[1756105969342,0.7362371,112180.0,112170.0,0.18688475]
[1756105969567,0.7393171,112180.0,112170.0,0.18688475]
[1756105969824,0.7393171,112180.0,112170.0,0.34528475]
[1756105970259,0.00570148,112180.0,112170.0,0.34528475]
[1756105970474,0.7393171,112180.0,112170.0,0.34528475]
[1756105974230,0.00570148,112180.0,112170.0,0.34528475]
[1756105974489,0.7393171,112180.0,112170.0,0.34528475]
[1756105975516,0.00570148,112180.0,112170.0,0.34528475]
[1756105975757,0.7393171,112180.0,112170.0,0.34528475]
[1756105975983,0.00262148,112180.0,112170.0,0.35043475]
[1756105976217,0.00048148,112180.0,112170.0,0.35043475]
[1756105976422,0.00048148,112180.0,112170.0,0.41895475]
[1756105976666,0.00048148,112180.0,112170.0,1.15257037]
[1756105977334,0.00048148,112180.0,112170.0,1.15457037]
[1756105977622,0.00048148,112180.0,112170.0,1.15357037]
[1756105977850,0.00048148,112180.0,112170.0,0.42195475]
[1756105979590,0.00262148,112180.0,112170.0,0.41680475]
[1756105980019,0.00262148,112180.0,112170.0,0.42195475]
[1756105980452,0.00048148,112180.0,112170.0,0.42195475]
[1756105984669,0.00259148,112180.0,112170.0,0.42195475]
[1756105984903,0.00048148,112180.0,112170.0,0.42195475]
[1756105985107,0.00048148,112180.0,112170.0,1.40160275]
[1756105985804,0.00048148,112180.0,112170.0,1.84160275]
[1756105986017,0.00048148,112180.0,112170.0,1.94160275]
[1756105987798,0.00048148,112180.0,112170.0,1.94148275]
[1756105991472,0.00048148,112180.0,112170.0,1.84148275]
[1756105991704,0.00048148,112180.0,112170.0,1.78320275]
[1756105991911,0.00048148,112180.0,112170.0,1.94144275]
[1756105993423,0.00048148,112180.0,112170.0,1.84144275]
[1756105993641,0.00048148,112180.0,112170.0,1.94144275]
[1756105996005,0.00048148,112180.0,112170.0,2.03544275]
[1756105996227,0.00048148,112180.0,112170.0,2.21374354]
[1756105996856,0.00048148,112180.0,112170.0,2.03544275]
[1756105997473,0.00048148,112180.0,112170.0,2.02886275]
[1756105997704,0.00048148,112180.0,112170.0,1.80685939]
[1756105998135,0.00048148,112180.0,112170.0,1.07324377]
[1756105998343,0.00048148,112180.0,112170.0,1.80685939]
[1756105998575,0.00048148,112180.0,112170.0,0.82100377]
[1756105998793,0.00048148,112180.0,112170.0,1.35561939]
[1756105999008,0.00253148,112180.0,112170.0,0.86318475]
[1756105999223,0.00253148,112180.0,112170.0,0.86518475]
[1756105999438,0.00253148,112180.0,112170.0,0.86824475]
[1756105999649,0.00253148,112180.0,112170.0,1.60186037]
[1756106000271,0.00048148,112180.0,112170.0,1.60186037]
[1756106000897,0.00048148,112180.0,112170.0,1.50186037]
[1756106001118,0.00048148,112180.0,112170.0,1.60186037]
[1756106002044,0.00048148,112180.0,112170.0,1.50186037]
[1756106002258,0.00048148,112180.0,112170.0,1.61930939]
[1756106002468,0.00048148,112180.0,112170.0,1.46110939]
[1756106002674,0.00253148,112180.0,112170.0,0.88565377]
[1756106002810,0.00253148,112180.0,112170.0,0.78159377]
[1756106003036,0.00253148,112180.0,112170.0,0.88059377]
[1756106003253,0.00253148,112180.0,112170.0,0.42314475]
[1756106003460,0.00569148,112180.0,112170.0,0.42314475]
[1756106004092,0.00253148,112180.0,112170.0,0.42314475]
[1756106004312,0.00048148,112180.0,112170.0,0.42820475]
[1756106004753,0.00048148,112180.0,112170.0,1.16182037]
[1756106005613,0.00048148,112180.0,112170.0,1.17926939]
[1756106006327,0.00048148,112180.0,112170.0,1.17416939]
[1756106006547,0.00253148,112180.0,112170.0,0.44255377]
[1756106006930,0.00253148,112180.0,112170.0,0.42310475]
[1756106007337,0.00253148,112180.0,112170.0,0.42816475]
[1756106007542,0.00048148,112180.0,112170.0,0.42816475]
[1756106008736,0.78743302,112200.0,112170.0,0.42816475]
[1756106008943,0.05396178,112200.0,112180.0,0.24719331]
[1756106009175,0.00205,112190.0,112180.0,0.08688475]
[1756106009407,0.00205,112190.0,112180.0,0.24942187]
[1756106009643,0.00205,112190.0,112180.0,0.08688475]
[1756106009840,0.73882562,112190.0,112180.0,0.08688475]
[1756106010005,0.73882562,112190.0,112180.0,0.18588475]
[1756106010508,0.73882562,112190.0,112180.0,0.34396475]
[1756106011061,0.00205,112190.0,112180.0,0.34396475]
[1756106011264,0.00205,112190.0,112180.0,0.34696475]
[1756106011470,0.00205,112190.0,112180.0,0.35002475]
[1756106012302,0.05079178,112200.0,112180.0,0.35002475]
[1756106012415,0.05079178,112200.0,112190.0,0.00222836]
[1756106012624,0.05284178,112200.0,112190.0,0.18811311]
[1756106012888,0.05284178,112200.0,112190.0,0.18588475]
[1756106013095,0.05284178,112200.0,112190.0,0.19094475]
[1756106013877,0.05179178,112200.0,112190.0,0.19094475]
[1756106015562,0.05179178,112200.0,112190.0,0.93114037]
[1756106017501,0.05179178,112200.0,112190.0,0.95783478]
[1756106017718,0.05179178,112200.0,112190.0,1.15314373]
[1756106018161,0.76356762,112230.0,112190.0,1.15314373]
[1756106018367,0.76356762,112230.0,112200.0,0.32092107]
[1756106018575,0.76356762,112230.0,112220.0,0.099]
[1756106018791,0.76356762,112230.0,112220.0,0.34388475]
[1756106020610,0.76756762,112230.0,112220.0,0.34388475]
[1756106020796,0.76356762,112230.0,112220.0,0.34388475]
[1756106021002,0.77270126,112230.0,112220.0,0.34388475]
[1756106021659,0.77670126,112230.0,112220.0,0.18588475]
[1756106021885,0.77867126,112230.0,112220.0,0.18588475]
[1756106024516,0.04505564,112230.0,112220.0,0.18588475]
[1756106024662,0.77867126,112230.0,112220.0,0.18588475]
[1756106024866,0.04505564,112230.0,112220.0,0.18588475]
[1756106025093,0.77867126,112230.0,112220.0,0.18588475]
[1756106027488,1.11867126,112230.0,112220.0,0.099]
[1756106029977,1.27655126,112230.0,112220.0,0.099]
[1756106030922,1.27651126,112230.0,112220.0,0.099]
[1756106031161,1.11867126,112230.0,112220.0,0.099]
[1756106031398,1.27651126,112230.0,112220.0,0.099]
[1756106035595,0.54289564,112230.0,112220.0,0.099]
[1756106035798,1.27651126,112230.0,112220.0,0.099]
[1756106038146,0.38505564,112230.0,112220.0,0.099]
[1756106038395,1.27643126,112230.0,112220.0,0.099]
[1756106040436,0.34,112220.0,112210.0,0.099]
[1756106040670,1.07866562,112220.0,112210.0,0.099]
[1756106041401,1.10545062,112220.0,112210.0,0.099]
[1756106042351,0.371835,112220.0,112210.0,0.099]
[1756106042588,1.10545062,112220.0,112210.0,0.099]
[1756106042827,1.26617062,112220.0,112210.0,0.099]
[1756106044213,1.10845062,112220.0,112210.0,0.099]
[1756106044473,1.26617062,112220.0,112210.0,0.099]
[1756106044688,1.10845062,112220.0,112200.0,0.099]
[1756106044911,0.73361562,112210.0,112200.0,0.099]
[1756106045434,0.73361562,112210.0,112190.0,0.099]
[1756106045435,0.73866562,112210.0,112190.0,0.099]
[1756106045665,0.89129562,112200.0,112190.0,0.099]
[1756106045879,0.89326562,112200.0,112190.0,0.099]
[1756106046201,0.89326562,112200.0,112190.0,0.10106]
[1756106046429,0.89326562,112200.0,112190.0,0.10406]
[1756106047166,0.88434562,112200.0,112190.0,0.10406]
[1756106047389,0.76237462,112200.0,112190.0,0.10406]
[1756106047840,0.76040462,112200.0,112190.0,0.10406]
[1756106048332,0.026789,112200.0,112190.0,0.10406]
[1756106048576,0.76040462,112200.0,112190.0,0.19094475]
[1756106049023,0.76237462,112200.0,112190.0,0.19094475]
[1756106049227,0.76040462,112200.0,112190.0,0.19094475]
[1756106049442,0.026789,112200.0,112190.0,0.19094475]
[1756106049663,0.76040462,112200.0,112190.0,0.19094475]
[1756106050120,0.76239462,112200.0,112190.0,0.18588475]
[1756106050335,0.76239462,112200.0,112190.0,0.099]
[1756106052152,0.76239462,112200.0,112190.0,0.1041]
[1756106052366,0.76239462,112200.0,112190.0,0.099]
[1756106053329,0.76239462,112200.0,112190.0,0.09905]
[1756106053768,0.76239462,112200.0,112190.0,0.10118]
[1756106054023,0.76239462,112200.0,112190.0,0.10415]
[1756106054241,0.76239462,112200.0,112190.0,0.09905]
[1756106055151,0.028779,112200.0,112190.0,0.10415]
[1756106055371,0.76239462,112200.0,112190.0,0.10415]
[1756106055787,0.76239462,112200.0,112190.0,0.10118]
[1756106056269,0.028779,112200.0,112190.0,0.10118]
[1756106056487,0.76239462,112200.0,112190.0,0.10118]
[1756106056917,0.76239462,112200.0,112190.0,0.09905]
[1756106058150,0.91800462,112200.0,112190.0,0.10415]
[1756106058907,0.91999462,112200.0,112190.0,0.10415]
[1756106059339,0.91800462,112200.0,112190.0,0.10415]
[1756106059977,0.91999462,112200.0,112190.0,0.10415]
[1756106060508,0.91995462,112200.0,112190.0,0.10415]
[1756106060705,0.91796462,112200.0,112190.0,0.10415]
[1756106062033,0.91804462,112200.0,112190.0,0.10415]
[1756106063114,0.91807462,112200.0,112190.0,0.10415]
[1756106065361,0.026899,112200.0,112190.0,0.10415]
[1756106065581,0.76040462,112200.0,112190.0,0.10415]
[1756106067143,0.76239462,112200.0,112190.0,0.10415]
[1756106069620,0.026789,112200.0,112190.0,0.19103475]
[1756106069827,0.76040462,112200.0,112190.0,0.19103475]
[1756106070028,0.026789,112200.0,112190.0,0.19103475]
[1756106070233,0.026789,112200.0,112190.0,0.34847475]
[1756106070439,1.23105562,112220.0,112190.0,0.34847475]
[1756106070760,0.026784,112210.0,112200.0,0.08985475]
[1756106070971,0.76238962,112210.0,112200.0,0.08901475]
[1756106071189,0.76556962,112210.0,112200.0,0.099]
[1756106072448,0.76556962,112210.0,112200.0,0.1]
[1756106072904,0.76238962,112210.0,112200.0,0.1]
[1756106073315,0.76556962,112210.0,112200.0,0.1]
[1756106073514,0.76238962,112210.0,112200.0,0.1]
[1756106073951,0.76238962,112210.0,112200.0,0.101]
[1756106074985,0.76556962,112210.0,112200.0,0.101]
[1756106076046,0.76238962,112210.0,112200.0,0.101]
[1756106079429,0.76238962,112210.0,112200.0,0.10614]
[1756106079687,0.76039962,112210.0,112200.0,0.10614]
[1756106079900,0.026784,112210.0,112200.0,0.19302475]
[1756106080774,0.026784,112210.0,112200.0,0.35034475]
[1756106081627,0.76039962,112210.0,112200.0,0.35034475]
[1756106081843,0.76039962,112210.0,112200.0,0.19302475]
[1756106085595,0.76039962,112210.0,112200.0,0.09402475]
[1756106085809,0.76039962,112210.0,112200.0,0.19302475]
[1756106086566,0.76047962,112210.0,112200.0,0.19302475]
[1756106086775,0.76047962,112210.0,112200.0,0.18788475]
[1756106087455,0.76047962,112210.0,112200.0,0.19295475]
[1756106089271,0.026864,112210.0,112200.0,0.19295475]
[1756106089435,0.76047962,112210.0,112200.0,0.18788475]
[1756106089838,0.76047962,112210.0,112200.0,0.18793475]
[1756106090044,0.76047962,112210.0,112200.0,0.19300475]
[1756106090479,0.76047962,112210.0,112200.0,0.18793475]
[1756106090693,0.76370962,112210.0,112200.0,0.10105]
[1756106092310,0.76047962,112210.0,112200.0,0.10105]
[1756106094096,0.91763962,112210.0,112200.0,0.10105]
[1756106095256,0.91763962,112210.0,112200.0,0.10311]
[1756106096209,0.91763962,112210.0,112200.0,0.10612]
[1756106097909,0.91763962,112210.0,112200.0,0.10311]
[1756106098266,0.91763962,112210.0,112200.0,0.10612]
[1756106099301,0.91755962,112210.0,112200.0,0.10612]
[1756106099581,0.026784,112210.0,112200.0,0.19300475]
[1756106101063,0.76039962,112210.0,112200.0,0.19300475]
[1756106101342,0.026784,112210.0,112200.0,0.19300475]
[1756106101630,0.026784,112210.0,112200.0,0.92662037]
[1756106101895,0.026784,112210.0,112200.0,0.99514037]
[1756106102137,0.34323901,112230.0,112200.0,1.01258939]
[1756106102138,0.00913364,112230.0,112200.0,1.01258939]
[1756106102385,0.00913364,112230.0,112220.0,0.099]
[1756106102649,0.026977,112240.0,112220.0,0.18794475]
[1756106102900,0.026977,112240.0,112230.0,0.19112231]
[1756106103156,0.026977,112240.0,112230.0,0.19095475]
[1756106103641,0.02712133,112240.0,112230.0,0.19095475]
[1756106104153,0.05551196,112240.0,112230.0,0.19095475]
[1756106104405,0.02712133,112240.0,112230.0,1.08161037]
[1756106104608,0.02712133,112240.0,112230.0,1.15013037]
[1756106104609,0.00334433,112240.0,112230.0,1.15013037]
[1756106104862,0.00334433,112240.0,112230.0,1.15009037]
[1756106105088,0.00334433,112240.0,112230.0,0.41647475]
[1756106105546,0.00334433,112240.0,112230.0,0.25947475]
[1756106105547,0.00034433,112240.0,112230.0,0.25947475]
[1756106105823,0.00034433,112240.0,112230.0,0.41647475]
[1756106106500,0.00034433,112240.0,112230.0,0.25947475]
[1756106106710,0.00034433,112240.0,112230.0,0.41847475]
[1756106107323,0.00034433,112240.0,112230.0,0.41947475]
[1756106107540,0.00034433,112240.0,112230.0,1.15309037]
[1756106107761,0.00034433,112240.0,112230.0,1.50953939]
[1756106107989,0.00034433,112240.0,112230.0,1.51153939]
[1756106109602,0.00034433,112240.0,112230.0,1.61153939]
[1756106109806,0.00034433,112240.0,112230.0,1.51153939]
[1756106110607,0.00034433,112240.0,112230.0,1.51510939]
[1756106111036,0.00034433,112240.0,112230.0,1.35810939]
[1756106111239,0.00034433,112240.0,112230.0,1.52160939]
[1756106112933,0.00034433,112240.0,112230.0,1.84289486]
[1756106113136,0.00034433,112240.0,112230.0,1.99977486]
[1756106113600,0.00034433,112240.0,112230.0,2.09977486]
[1756106116032,0.00034433,112240.0,112230.0,2.83339048]
[1756106116680,0.00034433,112240.0,112230.0,2.92739048]
[1756106118076,0.00034433,112240.0,112230.0,3.34029048]
[1756106118312,0.0002,112250.0,112240.0,0.92863861]
[1756106118557,0.0002,112250.0,112240.0,3.13257796]
[1756106118787,0.0002,112250.0,112240.0,3.28937796]
[1756106119423,0.0002,112250.0,112240.0,3.29537796]
[1756106119835,0.0002,112250.0,112240.0,3.13857796]
[1756106120008,0.0002,112250.0,112240.0,3.29533796]
[1756106120389,0.0002,112250.0,112240.0,3.13857796]
[1756106120763,0.0002,112250.0,112240.0,2.38353275]
[1756106120995,0.0002,112250.0,112240.0,3.11714837]
[1756106121231,0.0002,112250.0,112240.0,3.12314837]
[1756106121655,0.0002,112250.0,112240.0,3.30133796]
[1756106122299,0.0002,112250.0,112240.0,3.34197642]
[1756106123381,0.0002,112250.0,112240.0,3.34202642]
[1756106124056,0.0002,112250.0,112240.0,3.60492642]
[1756106124271,0.0002,112250.0,112240.0,3.34202642]
[1756106126294,0.0002,112250.0,112240.0,3.46702642]
[1756106126730,0.0002,112250.0,112240.0,3.31026642]
[1756106126952,0.0002,112250.0,112240.0,3.45840642]
[1756106127194,0.0002,112250.0,112240.0,3.1743974]
[1756106127411,0.0002,112250.0,112240.0,3.15284781]
[1756106127896,0.0002,112250.0,112240.0,0.50046216]
[1756106127897,0.00525,112250.0,112240.0,0.50046216]
[1756106128123,0.00525,112250.0,112240.0,1.09477037]
[1756106128333,0.00525,112250.0,112240.0,1.09473037]
[1756106128334,0.00219,112250.0,112240.0,1.09473037]
[1756106128576,0.00525,112250.0,112240.0,1.09473037]
[1756106128802,0.00525,112250.0,112240.0,0.20451475]
[1756106129033,0.00525,112250.0,112240.0,0.19851475]
[1756106129235,0.58814817,112260.0,112240.0,0.34911475]
[1756106129476,0.026968,112270.0,112250.0,0.08688475]
[1756106129691,0.76066937,112270.0,112260.0,0.1566]
[1756106129934,0.76066937,112270.0,112260.0,0.24348475]
[1756106131084,0.02705375,112270.0,112260.0,0.34248475]
[1756106131537,0.02705375,112270.0,112260.0,1.07610037]
[1756106131758,0.00028575,112270.0,112260.0,1.07610037]
[1756106131982,0.00028575,112270.0,112260.0,1.07918037]
[1756106132212,0.00028575,112270.0,112260.0,0.34248475]
[1756106132663,0.00028575,112270.0,112260.0,0.34244475]
[1756106132894,0.00028575,112270.0,112260.0,1.08230037]
[1756106133334,0.00028575,112270.0,112260.0,0.36513377]
[1756106133568,0.00028575,112270.0,112260.0,1.08011701]
[1756106133781,0.00028575,112270.0,112260.0,1.08311701]
[1756106133997,0.00028575,112270.0,112260.0,1.08511701]
[1756106135154,0.00028575,112270.0,112260.0,0.90586799]
[1756106135373,0.00028575,112270.0,112260.0,0.34744475]
[1756106135608,0.00028575,112270.0,112260.0,0.19088475]
[1756106135824,0.00028575,112270.0,112260.0,0.34744475]
[1756106136251,0.00028575,112270.0,112260.0,0.24844475]
[1756106136468,0.00028575,112270.0,112260.0,0.19088475]
[1756106136694,0.00028575,112270.0,112260.0,0.34740475]
[1756106138860,0.00028575,112270.0,112260.0,1.06762799]
[1756106139071,0.00028575,112270.0,112260.0,1.0943224]
[1756106139535,0.00028575,112270.0,112260.0,1.11835142]
[1756106139747,0.00028575,112270.0,112260.0,1.31366037]
[1756106139999,0.00028575,112270.0,112260.0,1.64708037]
[1756106140450,0.00028575,112270.0,112260.0,1.49056037]
[1756106140667,0.00028575,112270.0,112260.0,1.65366037]
[1756106141382,0.00028575,112270.0,112260.0,1.65362037]
[1756106142149,0.00028575,112270.0,112260.0,1.65367037]
[1756106142568,0.00028575,112270.0,112260.0,0.57599811]
[1756106142778,0.00028575,112270.0,112260.0,0.19751475]
[1756106143214,0.00028575,112270.0,112260.0,0.35399475]
[1756106143430,0.07138738,112270.0,112260.0,0.35399475]
[1756106144490,0.07138738,112270.0,112260.0,0.19751475]
[1756106144742,0.07138738,112270.0,112260.0,0.35399475]
[1756106144944,0.00028575,112270.0,112260.0,0.35399475]
[1756106145359,0.00028575,112270.0,112260.0,0.35199475]
[1756106146970,0.00028575,112270.0,112260.0,0.34899475]
[1756106147411,0.71434899,112280.0,112260.0,0.19251475]
[1756106147635,0.71498324,112270.0,112260.0,0.34895475]
[1756106147868,0.71498324,112270.0,112260.0,0.09905]
[1756106148093,0.71498324,112270.0,112260.0,0.25549]
[1756106148528,0.71498324,112270.0,112260.0,0.25649]
[1756106149698,1.05503132,112280.0,112260.0,0.25649]
[1756106149925,0.71498324,112270.0,112260.0,0.25649]
[1756106150158,1.05503132,112280.0,112260.0,0.25649]
[1756106150378,1.05503132,112280.0,112270.0,0.18588475]
[1756106150379,0.34004808,112280.0,112270.0,0.18588475]
[1756106150624,0.34004808,112280.0,112270.0,0.19109475]
[1756106150625,4.808e-05,112280.0,112270.0,0.19109475]
[1756106151031,4.808e-05,112280.0,112270.0,0.18894475]
[1756106151033,4.808e-05,112280.0,112270.0,0.18588475]
[1756106151450,4.808e-05,112280.0,112270.0,0.19109475]
[1756106151901,0.00104808,112280.0,112270.0,0.19109475]
[1756106153547,0.53126641,112290.0,112280.0,0.099]
[1756106153752,0.71498324,112290.0,112280.0,0.099]
[1756106154184,1.05498324,112290.0,112280.0,0.099]
[1756106155219,1.05598324,112290.0,112280.0,0.099]
[1756106156913,1.08275124,112290.0,112280.0,0.099]
[1756106157936,1.08275124,112290.0,112270.0,0.34324475]
[1756106158127,0.71498324,112280.0,112270.0,0.24424475]
[1756106158332,0.71498324,112280.0,112270.0,0.34324475]
[1756106158703,1.05498324,112280.0,112270.0,0.18688475]
[1756106158934,1.05498324,112280.0,112270.0,0.18588475]
[1756106159312,1.05498324,112280.0,112270.0,0.18688475]
[1756106159527,0.71498324,112280.0,112270.0,0.18688475]
[1756106159768,0.89811124,112290.0,112270.0,0.34324475]
[1756106159980,0.71498324,112280.0,112270.0,0.1]
[1756106160424,1.14185289,112280.0,112270.0,0.001]
[1756106160646,1.22873764,112280.0,112270.0,0.001]
[1756106160878,1.21034799,112280.0,112270.0,0.001]
[1756106161119,1.21034799,112280.0,112260.0,5e-05]
[1756106161120,0.34,112270.0,112260.0,5e-05]
[1756106161340,1.49377898,112270.0,112260.0,9.808e-05]
[1756106161577,1.31563701,112270.0,112260.0,9.808e-05]
[1756106162774,1.31863701,112270.0,112260.0,9.808e-05]
[1756106163267,1.40250666,112270.0,112260.0,9.808e-05]
[1756106163510,1.44357966,112270.0,112260.0,9.808e-05]
[1756106163976,1.62172163,112270.0,112260.0,9.808e-05]
[1756106164202,1.46540163,112270.0,112260.0,9.808e-05]
[1756106164433,1.54357966,112270.0,112260.0,9.808e-05]
[1756106165337,1.54657966,112270.0,112260.0,9.808e-05]
[1756106166639,1.72472163,112270.0,112260.0,9.808e-05]
[1756106166904,1.54657966,112270.0,112260.0,9.808e-05]
[1756106167162,1.56840163,112270.0,112260.0,9.808e-05]
[1756106167379,1.62472163,112270.0,112260.0,9.808e-05]
[1756106167585,1.38472163,112270.0,112260.0,9.808e-05]
[1756106167803,0.01744902,112260.0,112240.0,0.50005]
[1756106168022,0.87130324,112250.0,112240.0,0.50013575]
[1756106168240,0.89808324,112250.0,112240.0,0.49121078]
[1756106168451,0.89808324,112250.0,112240.0,0.48228581]
[1756106168883,0.89808324,112250.0,112240.0,0.47336084]
[1756106169335,0.89808324,112250.0,112240.0,0.46443587]
[1756106169740,0.89808324,112250.0,112240.0,0.4555109]
[1756106169741,1.24008324,112250.0,112240.0,0.4555109]
[1756106170192,1.24008324,112250.0,112240.0,0.44658593]
[1756106170619,1.24008324,112250.0,112240.0,0.43766096]
[1756106171048,1.24008324,112250.0,112240.0,0.42873532]
[1756106171288,1.24008324,112250.0,112240.0,0.41980968]
[1756106171513,1.30856324,112250.0,112240.0,0.41980968]
[1756106172216,1.30856324,112250.0,112240.0,0.41088404]
[1756106172684,1.30856324,112250.0,112240.0,0.4019584]
[1756106173100,1.30856324,112250.0,112240.0,0.39303276]
[1756106173316,1.30856324,112250.0,112240.0,0.38410712]
[1756106173775,1.30856324,112250.0,112240.0,0.37518148]
[1756106174205,1.32966117,112250.0,112240.0,0.36625584]